bitfinex/quotes_SOLUSD_20240708
["timestamp","ask_amount","ask_price","bid_price","bid_amount"]
[1720421965532,100.0,133.03,132.98,6.0896]
[1720421966444,100.0,133.05,132.98,6.0896]
[1720421966832,100.0,133.05,132.99,31.21]
[1720421967536,100.0,133.07,132.99,31.21]
[1720421970162,100.0,133.09,132.99,31.21]
[1720421970361,100.0,133.09,133.03,15.6613]
[1720421971254,15.9585,133.12,133.03,15.6613]
[1720421971255,115.9585,133.12,133.03,15.6613]
[1720421971468,100.0,133.12,133.04,6.2731]
[1720421971671,100.0,133.12,133.05,31.21]
[1720421973772,100.0,133.1,133.05,31.21]
[1720421976068,100.0,133.08,133.04,6.2731]
[1720421977560,100.0,133.08,133.03,15.6613]
[1720421981663,100.0,133.06,133.03,15.6613]
[1720421982379,100.0,133.08,133.03,15.6613]
[1720421984479,100.0,133.06,133.03,15.6613]
[1720421984666,100.0,133.06,133.01,6.2938]
[1720421985191,100.0,133.08,133.01,6.2938]
[1720421986284,100.0,133.06,133.01,6.2938]
[1720421987362,100.0,133.04,133.01,6.2938]
[1720421987603,100.0,133.04,132.99,46.6168]
[1720421987758,100.0,133.06,132.99,46.6168]
[1720421988780,100.0,133.04,132.99,46.6168]
[1720421991786,100.0,133.04,132.99,31.21]
[1720421992296,100.0,133.04,132.98,6.6086]
[1720421993492,100.0,133.02,132.98,6.6086]
[1720421994083,100.0,133.02,132.96,47.6283]
[1720421994270,100.0,133.02,132.96,16.4183]
[1720421995682,100.0,133.04,132.96,16.4183]
[1720421997476,100.0,133.06,132.98,31.21]
[1720421999792,100.0,133.08,132.99,20.0]
[1720422000098,0.17,133.07,132.99,20.0]
[1720422000799,100.0,133.06,132.99,20.0]
[1720422001500,22.2354,133.1,132.99,20.0]
[1720422001501,122.2354,133.1,132.99,20.0]
[1720422001799,100.0,133.07,133.02,6.4339]
[1720422001971,100.0,133.05,133.0,16.3979]
[1720422003613,100.0,133.07,133.0,16.3979]
[1720422004000,100.0,133.09,133.0,16.3979]
[1720422004376,100.0,133.09,133.02,31.21]
[1720422004699,100.0,133.07,133.0,78.6779]
[1720422004917,100.0,133.07,133.0,16.3979]
[1720422005195,100.0,133.07,133.05,15.57]
[1720422005405,100.0,133.07,133.0,78.6779]
[1720422005406,100.0,133.07,133.06,15.57]
[1720422005715,28.78790179,133.13,133.0,78.6779]
[1720422005716,100.0,133.1,133.0,78.6779]
[1720422005880,100.0,133.1,133.07,15.57]
[1720422006086,100.0,133.08,133.06,15.57]
[1720422006284,28.78790179,133.13,133.05,15.57]
[1720422006285,100.0,133.06,133.05,15.57]
[1720422006491,100.0,133.06,133.04,15.57]
[1720422006697,100.0,133.08,133.0,22.34614288]
[1720422006918,100.0,133.1,133.05,15.57]
[1720422007121,100.0,133.1,133.07,15.57]
[1720422007616,100.0,133.1,133.0,84.62614288]
[1720422007919,100.0,133.1,133.05,15.57]
[1720422007920,100.0,133.08,133.05,15.57]
[1720422008295,115.57,133.1,133.05,15.57]
[1720422008601,100.0,133.08,133.05,15.57]
[1720422008802,100.0,133.06,133.05,15.57]
[1720422009001,100.0,133.04,133.0,23.94614288]
[1720422009188,100.0,133.02,133.0,17.17]
[1720422009518,100.0,133.02,133.0,1.6]
[1720422010029,115.57,133.02,133.0,1.6]
[1720422010351,15.74,133.01,133.0,1.6]
[1720422011128,0.17,133.01,133.0,1.6]
[1720422011297,100.0,133.02,133.0,1.6]
[1720422011726,15.9526,133.03,133.0,17.17]
[1720422012029,100.17,133.02,133.0,1.6]
[1720422012257,0.17,133.03,133.0,17.17]
[1720422012402,0.17,133.03,133.01,15.57]
[1720422012732,0.17,133.03,133.0,1.6]
[1720422012733,100.0,133.06,133.0,1.6]
[1720422013112,122.0932,133.1,133.0,32.78]
[1720422013339,100.0,133.13,133.03,31.18]
[1720422013532,100.0,133.13,133.04,6.4941]
[1720422014939,100.0,133.11,133.04,6.4941]
[1720422016037,100.0,133.09,133.04,6.4941]
[1720422016616,100.0,133.09,133.01,6.1799]
[1720422017210,100.0,133.12,133.02,31.18]
[1720422017520,122.0932,133.14,133.02,31.18]
[1720422017707,115.4469,133.14,133.03,0.17]
[1720422017908,115.4469,133.14,133.05,31.18]
[1720422018915,115.4469,133.14,133.03,20.17]
[1720422018916,100.0,133.11,133.03,20.0]
[1720422020215,15.4469,133.14,133.03,20.0]
[1720422020216,100.0,133.09,133.03,20.0]
[1720422020410,100.0,133.07,133.01,6.1799]
[1720422020632,100.0,133.09,133.01,6.1799]
[1720422020830,0.17,133.08,133.01,6.1799]
[1720422021008,100.0,133.09,133.01,6.1799]
[1720422021408,115.4469,133.14,133.02,31.18]
[1720422021614,100.0,133.12,133.02,31.18]
[1720422021835,100.0,133.12,133.03,20.0]
[1720422023415,0.17,133.13,133.03,20.0]
[1720422023616,0.17,133.13,133.04,15.2738]
[1720422024434,100.0,133.16,133.05,57.4911]
[1720422025959,0.17,133.15,133.05,57.4911]
[1720422026623,100.0,133.13,133.05,57.4911]
[1720422026824,100.0,133.11,133.05,57.3211]
[1720422027234,100.0,133.11,133.05,37.3211]
[1720422027623,100.0,133.11,133.05,6.1411]
[1720422028549,100.0,133.09,133.05,6.1411]
[1720422028852,100.0,133.09,133.04,15.2738]
[1720422030719,115.5427,133.12,133.04,15.2738]
[1720422031145,100.0,133.08,133.04,15.2738]
[1720422031946,15.5427,133.12,133.04,15.2738]
[1720422031947,100.0,133.1,133.04,15.2738]
[1720422032335,115.5427,133.12,133.04,15.2738]
[1720422034523,100.0,133.12,133.04,15.2738]
[1720422035762,100.0,133.09,133.04,15.2738]
[1720422036557,100.0,133.11,133.04,15.2738]
[1720422037670,100.0,133.09,133.04,15.2738]
[1720422038266,100.0,133.11,133.04,15.2738]
[1720422040260,0.17,133.12,133.04,15.2738]
[1720422041465,100.0,133.13,133.04,15.2738]
[1720422041865,0.17,133.14,133.04,15.2738]
[1720422042068,100.0,133.15,133.06,37.2037]
[1720422042234,100.0,133.2,133.1,6.5579]
[1720422042440,15.9563,133.21,133.11,16.1858]
[1720422042876,21.70711936,133.2,133.11,16.1858]
[1720422043666,100.0,133.18,133.11,16.1858]
[1720422045084,115.9563,133.21,133.11,47.3658]
[1720422045258,21.70693792,133.2,133.11,47.3658]
[1720422046459,100.1,133.19,133.11,47.3658]
[1720422050081,100.1,133.19,133.11,16.1858]
[1720422050465,100.0,133.17,133.11,16.1858]
[1720422051466,0.17,133.18,133.1,6.5579]
[1720422051467,100.0,133.14,133.1,6.5579]
[1720422052590,100.0,133.11,133.08,15.3332]
[1720422053167,100.0,133.11,133.06,6.0778]
[1720422053883,100.0,133.13,133.06,6.0778]
[1720422055786,100.0,133.11,133.06,6.0778]
[1720422056173,100.0,133.11,133.04,21.69396209]
[1720422056174,100.0,133.09,133.04,15.7973]
[1720422056370,0.17,133.1,133.02,6.61]
[1720422056371,100.0,133.06,133.02,6.61]
[1720422057485,0.17,133.1,133.0,17.1978]
[1720422057486,100.0,133.04,133.0,17.1978]
[1720422057864,100.0,133.04,133.0,1.6]
[1720422060866,100.0,133.02,133.0,1.6]
[1720422061282,0.17,133.01,133.0,1.6]
[1720422062187,0.17,133.01,132.88,390.2]
[1720422062188,100.0,132.94,132.88,390.2]
[1720422062378,100.0,132.94,132.87,53.1513]
[1720422063291,100.0,132.96,132.87,53.1513]
[1720422063483,100.0,132.96,132.88,20.17]
[1720422063793,100.0,132.96,132.88,20.0]
[1720422063992,100.0,132.94,132.88,20.0]
[1720422064510,100.0,132.92,132.87,21.9713]
[1720422064869,100.0,132.94,132.87,21.9713]
[1720422065092,100.0,132.92,132.87,6.3324]
[1720422065291,100.0,132.9,132.84,5.90225003]
[1720422065493,100.0,132.9,132.83,445.2375959]
[1720422066096,100.0,132.9,132.83,414.0575959]
[1720422066598,100.0,132.9,132.84,20.0]
[1720422067998,100.0,132.92,132.84,20.0]
[1720422068201,100.0,132.92,132.84,51.18]
[1720422068503,100.0,132.9,132.84,51.18]
[1720422068673,100.0,132.92,132.84,20.0]
[1720422068875,100.0,132.89,132.84,20.0]
[1720422069174,100.0,132.89,132.83,23.8575959]
[1720422069610,100.0,132.91,132.83,23.8575959]
[1720422069976,100.0,132.89,132.83,23.8575959]
[1720422070180,100.0,132.89,132.83,7.4175959]
[1720422070418,0.17,132.88,132.83,7.4175959]
[1720422071079,100.0,132.87,132.83,0.8622959]
[1720422071479,100.0,132.89,132.83,0.8622959]
[1720422072804,100.0,132.88,132.83,0.8622959]
[1720422073704,100.0,132.86,132.83,0.8622959]
[1720422074003,100.0,132.88,132.83,0.8622959]
[1720422074216,100.0,132.86,132.83,0.8622959]
[1720422074507,100.0,132.84,132.83,0.8622959]
[1720422075301,100.17,132.84,132.83,0.8622959]
[1720422076913,100.0,132.82,132.81,0.1]
[1720422077106,100.17,132.82,132.81,0.1]
[1720422077786,120.17,132.82,132.81,0.1]
[1720422078093,100.17,132.82,132.81,0.1]
[1720422078409,120.17,132.82,132.81,0.1]
[1720422079407,120.17,132.82,132.76,0.04463262]
[1720422079408,100.0,132.77,132.76,0.04463262]
[1720422079583,100.17,132.77,132.76,0.04463262]
[1720422084602,122.366,132.77,132.76,0.04463262]
[1720422084813,100.0,132.72,132.71,0.1]
[1720422085006,100.17,132.72,132.71,0.1]
[1720422087421,120.13,132.72,132.71,0.1]
[1720422087822,140.13,132.72,132.71,0.1]
[1720422089920,156.5175,132.72,132.71,0.1]
[1720422090392,156.5175,132.72,132.69,0.8622959]
[1720422090393,100.0,132.7,132.69,0.8622959]
[1720422090589,100.0,132.7,132.61,0.1]
[1720422090590,100.0,132.64,132.61,0.1]
[1720422091711,100.0,132.69,132.61,0.1]
[1720422091916,100.0,132.67,132.61,0.1]
[1720422092126,100.0,132.69,132.61,0.1]
[1720422092291,100.0,132.71,132.62,22.6855]
[1720422093097,100.0,132.69,132.62,22.6855]
[1720422093318,100.0,132.67,132.62,22.6855]
[1720422093998,100.0,132.7,132.62,22.6855]
[1720422094820,15.9046,132.75,132.63,20.17]
[1720422095001,100.0,132.77,132.66,6.32]
[1720422095325,100.0,132.77,132.67,20.0]
[1720422095822,100.0,132.74,132.67,20.0]
[1720422096234,100.0,132.76,132.67,20.0]
[1720422096403,35.14,132.93,132.67,20.0]
[1720422096404,100.0,132.78,132.67,20.0]
[1720422096607,100.0,132.75,132.67,20.0]
[1720422096907,100.0,132.72,132.67,20.0]
[1720422097109,100.0,132.74,132.67,20.0]
[1720422097310,100.0,132.76,132.67,20.0]
[1720422097831,100.0,132.76,132.68,0.17]
[1720422098006,100.0,132.78,132.69,15.6773]
[1720422098211,100.0,132.76,132.69,15.6773]
[1720422098598,100.0,132.78,132.69,15.6773]
[1720422099106,100.0,132.76,132.69,15.6773]
[1720422099834,100.0,132.8,132.69,15.6773]
[1720422100040,100.0,132.8,132.7,20.0]
[1720422100341,100.0,132.78,132.7,20.0]
[1720422100647,100.0,132.8,132.7,20.0]
[1720422100998,100.0,132.84,132.71,6.2565]
[1720422101227,100.0,132.84,132.72,20.0]
[1720422101438,100.0,132.84,132.72,20.17]
[1720422102726,6.1395,132.86,132.72,20.17]
[1720422102727,100.0,132.8,132.72,20.17]
[1720422102949,100.0,132.8,132.72,20.0]
[1720422103239,100.0,132.82,132.72,20.0]
[1720422103402,100.0,132.8,132.72,20.0]
[1720422103702,100.0,132.82,132.72,20.0]
[1720422103902,115.9666,132.87,132.73,0.17]
[1720422104125,100.0,132.85,132.73,0.17]
[1720422104332,100.0,132.85,132.75,6.4531]
[1720422104522,100.0,132.85,132.76,20.0]
[1720422104917,100.0,132.83,132.76,20.0]
[1720422105422,100.0,132.81,132.75,6.4531]
[1720422107232,100.0,132.83,132.75,6.4531]
[1720422108026,100.0,132.81,132.75,6.4531]
[1720422108834,100.0,132.83,132.75,6.4531]
[1720422110937,100.0,132.81,132.75,6.4531]
[1720422111333,100.0,132.79,132.75,6.4531]
[1720422111938,0.17,132.82,132.75,6.4531]
[1720422111939,100.0,132.81,132.75,6.4531]
[1720422112643,100.0,132.83,132.75,6.4531]
[1720422113728,100.0,132.86,132.75,6.4531]
[1720422114365,69.02474338,133.01,132.76,20.17]
[1720422114366,100.0,132.9,132.76,20.17]
[1720422114541,100.0,132.9,132.76,410.37]
[1720422115546,100.0,132.9,132.77,6.2263]
[1720422115740,100.0,132.9,132.78,20.17]
[1720422116339,100.0,132.9,132.79,16.1595]
[1720422116555,100.0,132.9,132.8,20.0]
[1720422117735,100.0,132.88,132.8,20.0]
[1720422118237,100.0,132.88,132.79,16.1595]
[1720422118549,100.0,132.86,132.79,16.1595]
[1720422118857,100.0,132.84,132.79,16.1595]
[1720422119051,100.0,132.86,132.79,16.1595]
[1720422120559,0.17,132.89,132.79,16.1595]
[1720422120737,100.0,132.9,132.8,20.0]
[1720422121139,15.2661,132.92,132.8,20.0]
[1720422121346,100.0,132.88,132.8,20.0]
[1720422121534,100.0,132.88,132.79,16.1595]
[1720422121856,100.0,132.86,132.79,16.1595]
[1720422122044,100.0,132.84,132.79,16.1595]
[1720422122241,100.0,132.86,132.79,16.1595]
[1720422123959,15.2661,132.92,132.79,16.1595]
[1720422123960,100.0,132.88,132.79,16.1595]
[1720422124463,100.0,132.86,132.79,16.1595]
[1720422124834,100.0,132.84,132.79,16.1595]
[1720422125035,0.17,132.87,132.77,12.22636156]
[1720422125036,100.0,132.82,132.77,12.22636156]
[1720422125234,100.0,132.82,132.77,6.2263]
[1720422125661,100.0,132.82,132.75,15.3539]
[1720422125865,100.0,132.8,132.75,15.3539]
[1720422126045,100.0,132.8,132.74,396.2964]
[1720422128372,100.0,132.76,132.74,390.2]
[1720422128668,100.0,132.76,132.7,6.0949]
[1720422129368,100.0,132.74,132.67,21.943]
[1720422129574,100.0,132.72,132.67,21.943]
[1720422129765,100.0,132.72,132.64,15.503]
[1720422130854,100.0,132.72,132.65,20.0]
[1720422131169,100.0,132.74,132.65,20.0]
[1720422131376,100.0,132.72,132.65,20.0]
[1720422131675,100.0,132.72,132.64,15.503]
[1720422132174,100.0,132.75,132.64,15.503]
[1720422132681,100.0,132.75,132.64,23.0421]
[1720422132845,6.2993,132.77,132.65,7.5383]
[1720422132846,100.0,132.77,132.65,7.5383]
[1720422133043,100.0,132.75,132.64,23.0421]
[1720422133262,100.0,132.75,132.65,20.17]
[1720422133447,100.0,132.73,132.65,20.0]
[1720422133862,100.0,132.77,132.65,20.0]
[1720422134250,100.0,132.75,132.65,20.0]
[1720422134448,100.0,132.73,132.65,20.0]
[1720422135974,100.0,132.73,132.64,405.703]
[1720422136271,100.0,132.71,132.64,405.703]
[1720422136651,100.0,132.73,132.64,405.703]
[1720422138160,100.0,132.7,132.64,405.703]
[1720422138771,100.0,132.7,132.64,390.2]
[1720422139581,100.0,132.7,132.63,6.4333]
[1720422142183,100.0,132.68,132.63,6.4333]
[1720422142366,100.0,132.68,132.61,16.1253]
[1720422143782,6.3766,132.73,132.61,16.1253]
[1720422144079,100.0,132.73,132.62,20.0]
[1720422144261,100.0,132.73,132.63,0.17]
[1720422144680,100.0,132.71,132.62,20.0]
[1720422145269,100.0,132.69,132.62,20.0]
[1720422145570,16.6124,132.74,132.62,20.0]
[1720422145571,100.0,132.71,132.62,20.0]
[1720422146072,16.6124,132.74,132.62,20.0]
[1720422146073,100.0,132.69,132.62,20.0]
[1720422146665,100.0,132.69,132.61,16.1253]
[1720422147276,16.6124,132.74,132.61,16.1253]
[1720422147277,100.0,132.65,132.61,16.1253]
[1720422147458,100.0,132.65,132.61,0.1]
[1720422149078,100.0,132.67,132.61,0.1]
[1720422149266,100.0,132.69,132.61,0.1]
[1720422149468,100.0,132.69,132.62,6.4886]
[1720422149667,100.0,132.72,132.62,6.4886]
[1720422149865,100.0,132.72,132.63,0.17]
[1720422150067,100.0,132.72,132.64,16.54]
[1720422151088,100.0,132.74,132.64,16.54]
[1720422151390,100.0,132.74,132.65,20.17]
[1720422152903,100.0,132.72,132.65,20.0]
[1720422153400,100.0,132.72,132.64,16.54]
[1720422153605,100.0,132.69,132.63,390.2]
[1720422153889,100.0,132.69,132.62,6.4886]
[1720422154671,100.0,132.66,132.62,6.4886]
[1720422156180,100.0,132.66,132.61,15.1998]
[1720422156891,100.0,132.68,132.61,15.1998]
[1720422157315,21.6285,132.72,132.61,15.1998]
[1720422157316,100.0,132.66,132.61,15.1998]
[1720422158696,21.6285,132.72,132.61,15.1998]
[1720422158697,100.0,132.64,132.61,0.1]
[1720422159195,100.0,132.66,132.61,0.1]
[1720422161006,100.0,132.68,132.61,0.1]
[1720422162809,100.0,132.7,132.61,0.1]
[1720422163094,100.0,132.65,132.61,0.1]
[1720422163499,100.0,132.67,132.61,0.1]
[1720422164308,100.0,132.69,132.61,0.1]
[1720422165173,100.0,132.71,132.61,0.1]
[1720422166187,100.0,132.68,132.61,0.1]
[1720422166391,100.0,132.66,132.61,0.1]
[1720422166774,21.6285,132.72,132.61,0.1]
[1720422166775,100.0,132.68,132.61,0.1]
[1720422172811,100.0,132.7,132.61,0.1]
[1720422173183,100.0,132.7,132.63,15.4368]
[1720422174284,100.0,132.72,132.63,15.4368]
[1720422174483,100.0,132.74,132.64,6.5374]
[1720422174788,15.5956,132.75,132.64,6.5374]
[1720422174789,100.0,132.72,132.65,9.06695344]
[1720422175098,100.0,132.72,132.64,6.5374]
[1720422175400,100.0,132.72,132.65,9.06665418]
[1720422176105,100.0,132.72,132.64,6.5374]
[1720422176313,100.0,132.7,132.64,6.5374]
[1720422176519,100.0,132.7,132.65,9.06699425]
[1720422176697,100.0,132.7,132.64,6.5374]
[1720422177407,100.0,132.72,132.64,6.5374]
[1720422177617,100.0,132.72,132.65,9.06675948]
[1720422178295,15.5956,132.75,132.65,9.06675948]
[1720422178296,100.0,132.74,132.65,9.06675948]
[1720422178807,100.0,132.76,132.65,9.06675948]
[1720422179012,116.1831,132.78,132.68,31.33]
[1720422179384,116.1831,132.78,132.69,16.3503]
[1720422180201,100.0,132.76,132.69,16.3503]
[1720422180384,15.6291,132.81,132.7,6.6374]
[1720422180598,15.6291,132.81,132.7,15.70126575]
[1720422180599,100.0,132.79,132.7,15.70126575]
[1720422180796,100.0,132.79,132.71,31.33]
[1720422181795,100.0,132.77,132.71,31.33]
[1720422182116,100.0,132.77,132.7,6.4674]
[1720422182298,100.0,132.77,132.71,20.0]
[1720422182486,100.0,132.8,132.71,20.0]
[1720422182689,100.0,132.76,132.7,6.4674]
[1720422183827,100.0,132.74,132.67,6.0428]
[1720422184317,100.0,132.72,132.67,6.0428]
[1720422185006,100.0,132.72,132.63,21.9654]
[1720422185219,100.0,132.72,132.64,9.06615817]
[1720422185900,100.0,132.69,132.64,9.06615817]
[1720422186120,100.0,132.69,132.63,6.5617]
[1720422186301,100.0,132.67,132.63,6.10917805]
[1720422186495,100.0,132.67,132.62,390.2]
[1720422188236,100.0,132.65,132.62,390.2]
[1720422188530,100.0,132.65,132.61,0.1]
[1720422189925,100.0,132.67,132.61,0.1]
[1720422191315,100.0,132.64,132.61,0.1]
[1720422193306,100.0,132.66,132.61,0.1]
[1720422194307,100.0,132.64,132.61,0.1]
[1720422194524,16.0824,132.67,132.61,0.1]
[1720422194525,100.0,132.62,132.61,0.1]
[1720422196624,100.17,132.62,132.61,0.1]
[1720422196822,100.0,132.62,132.61,0.1]
[1720422197139,100.0,132.64,132.61,0.1]
[1720422197509,116.0824,132.67,132.61,0.1]
[1720422199221,100.0,132.64,132.61,0.1]
[1720422200131,16.0824,132.67,132.61,0.1]
[1720422200132,100.0,132.62,132.61,0.1]
[1720422200734,100.0,132.64,132.61,0.1]
[1720422201717,16.0824,132.67,132.61,0.1]
[1720422201718,100.0,132.66,132.61,0.1]
[1720422202041,100.0,132.68,132.61,0.1]
[1720422203034,100.0,132.66,132.61,0.1]
[1720422203557,100.0,132.68,132.61,0.1]
[1720422204942,100.0,132.66,132.61,0.1]
[1720422205115,100.0,132.64,132.61,0.1]
[1720422207314,100.0,132.62,132.61,0.1]
[1720422209521,100.17,132.62,132.61,0.1]
[1720422212543,100.0,132.62,132.61,0.1]
[1720422214438,100.17,132.62,132.61,0.1]
[1720422216735,100.0,132.62,132.61,0.1]
[1720422217352,100.17,132.62,132.61,0.1]
[1720422217555,131.53,132.62,132.61,0.1]
[1720422218845,100.0,132.57,132.56,0.8622959]
[1720422219840,100.17,132.57,132.56,0.8622959]
[1720422220156,100.0,132.57,132.56,0.8622959]
[1720422222236,100.17,132.57,132.56,0.8622959]
[1720422222438,100.0,132.57,132.56,0.8622959]
[1720422224748,100.17,132.57,132.56,0.8622959]
[1720422225346,100.0,132.57,132.56,0.8622959]
[1720422225946,100.17,132.57,132.56,0.8622959]
[1720422227255,100.0,132.57,132.56,0.8622959]
[1720422228644,100.17,132.57,132.56,0.8622959]
[1720422232369,131.53,132.57,132.56,0.8622959]
[1720422233359,131.36,132.57,132.56,0.8622959]
[1720422234049,100.0,132.57,132.56,0.8622959]
[1720422237783,100.17,132.57,132.56,0.8622959]
[1720422238566,100.0,132.57,132.56,0.8622959]
[1720422240276,100.17,132.57,132.56,0.8622959]
[1720422240451,100.0,132.57,132.56,0.8622959]
[1720422242660,115.7,132.57,132.56,0.8622959]
[1720422243750,100.0,132.57,132.56,0.8622959]
[1720422243968,115.7,132.57,132.56,0.8622959]
[1720422244467,115.87,132.57,132.56,0.8622959]
[1720422244664,100.17,132.57,132.56,0.8622959]
[1720422246055,116.3265,132.57,132.56,0.8622959]
[1720422246254,122.4945,132.57,132.56,0.8622959]
[1720422247155,142.4945,132.57,132.56,0.8622959]
[1720422249366,100.0,132.52,132.51,0.1]
[1720422249776,100.17,132.52,132.51,0.1]
[1720422250874,100.0,132.52,132.51,0.1]
[1720422252475,100.17,132.52,132.51,0.1]
[1720422252662,120.17,132.52,132.51,0.1]
[1720422253968,100.0,132.52,132.51,0.1]
[1720422255868,121.78951115,132.52,132.51,0.1]
[1720422256066,121.95951115,132.52,132.51,0.1]
[1720422256684,121.98674197,132.52,132.51,0.1]
[1720422257485,100.17,132.52,132.51,0.1]
[1720422257983,121.98584586,132.52,132.51,0.1]
[1720422258186,100.17,132.52,132.51,0.1]
[1720422258685,100.0,132.52,132.51,0.1]
[1720422260799,100.0,132.54,132.51,0.1]
[1720422262287,100.0,132.52,132.51,0.1]
[1720422263694,31.42,132.56,132.51,0.1]
[1720422263695,100.0,132.56,132.51,0.1]
[1720422263872,100.0,132.54,132.51,0.1]
[1720422264378,100.0,132.56,132.51,0.1]
[1720422267196,100.0,132.54,132.51,0.1]
[1720422267571,100.0,132.52,132.51,0.1]
[1720422270771,100.17,132.52,132.51,0.1]
[1720422271382,131.59,132.52,132.51,0.1]
[1720422272808,131.42,132.52,132.51,0.1]
[1720422273101,100.0,132.52,132.51,0.1]
[1720422278411,100.17,132.52,132.51,0.1]
[1720422278615,100.0,132.52,132.51,0.1]
[1720422280833,100.0,132.54,132.51,0.1]
[1720422281042,100.0,132.52,132.51,0.1]
[1720422282807,100.0,132.54,132.51,0.1]
[1720422287231,31.42,132.58,132.51,0.1]
[1720422287232,100.0,132.52,132.51,0.1]
[1720422287827,100.0,132.47,132.43,0.8622959]
[1720422288868,100.0,132.45,132.43,0.8622959]
[1720422295155,0.17,132.44,132.43,0.8622959]
[1720422295371,100.0,132.45,132.43,0.8622959]
[1720422298385,0.17,132.44,132.43,0.8622959]
[1720422298678,0.17,132.44,132.41,0.1]
[1720422298679,100.0,132.42,132.41,0.1]
[1720422298888,100.17,132.42,132.41,0.1]
[1720422299047,120.17,132.42,132.41,0.1]
[1720422299248,100.0,132.37,132.36,0.0447675]
[1720422300269,142.7503,132.37,132.36,0.0447675]
[1720422300485,100.0,132.32,132.31,0.1]
[1720422300669,131.42,132.32,132.31,0.1]
[1720422300865,131.59,132.32,132.31,0.1]
[1720422301079,100.0,132.35,132.31,0.1]
[1720422301386,15.0,132.46,132.32,15.49909878]
[1720422301387,100.0,132.43,132.32,15.49909878]
[1720422301581,100.0,132.43,132.33,9.08579878]
[1720422301749,100.0,132.43,132.34,16.6647]
[1720422302059,100.0,132.46,132.35,9.08579878]
[1720422302397,22.9193,132.51,132.35,9.08579878]
[1720422302398,100.0,132.4,132.35,9.08579878]
[1720422302854,100.0,132.38,132.35,9.08579878]
[1720422303058,100.0,132.41,132.34,16.6647]
[1720422303255,100.0,132.38,132.34,16.6647]
[1720422303684,100.0,132.41,132.34,16.6647]
[1720422303887,3.77784313,132.47,132.34,16.6647]
[1720422303888,100.0,132.43,132.34,16.6647]
[1720422304261,100.0,132.41,132.34,16.6647]
[1720422304481,31.42,132.45,132.34,16.6647]
[1720422304482,100.0,132.43,132.34,16.6647]
[1720422304695,100.0,132.43,132.35,0.17]